bitfinex-derivatives/quotes_BNBF0:USTF0_20250330
["timestamp","ask_amount","ask_price","bid_price","bid_amount"]
[1743359735581,1.26691167,603.63,602.69,0.62035731]
[1743359736278,1.26691167,603.62,602.69,0.62035731]
[1743359737083,1.26691167,603.61,602.69,0.62035731]
[1743359737379,1.26691167,603.6,602.69,0.33184555]
[1743359737582,2.89391167,603.6,602.69,0.62035372]
[1743359738279,1.627,603.6,602.69,0.62035372]
[1743359740383,1.627,603.6,602.69,0.33184555]
[1743359741386,1.26691167,603.59,602.69,0.33184555]
[1743359741580,1.26691167,603.59,602.69,0.62040875]
[1743359742085,2.49291167,603.58,602.69,0.62040875]
[1743359742785,1.26691167,603.57,602.69,0.62040875]
[1743359742986,1.26691167,603.56,602.69,0.62040875]
[1743359743282,1.26691167,603.56,602.69,0.33184555]
[1743359743683,1.26691167,603.55,602.69,0.62035013]
[1743359744586,1.226,603.58,602.69,0.62035013]
[1743359745585,1.26829703,603.57,602.69,0.62035013]
[1743359746288,1.26829703,603.56,602.69,0.62035013]
[1743359746480,1.26829703,603.56,602.69,0.33184555]
[1743359746883,1.26829703,603.55,602.69,0.33184555]
[1743359747688,1.226,603.58,602.69,0.33184555]
[1743359747689,1.26829703,603.54,602.69,0.62036568]
[1743359748387,1.226,603.58,602.69,0.62036568]
[1743359748789,1.25181697,603.57,602.69,0.62036568]
[1743359749486,1.226,603.58,602.69,0.33184555]
[1743359750287,1.226,603.58,602.69,2.83608405]
[1743359750783,1.25182435,603.57,602.69,3.12459461]
[1743359751395,1.226,603.58,602.69,3.12459461]
[1743359752089,2.955,603.58,602.69,3.12459461]
[1743359752390,1.25182481,603.57,602.69,0.33184555]
[1743359753387,2.955,603.58,602.69,0.33184555]
[1743359753587,2.955,603.58,602.69,0.62035611]
[1743359755294,2.955,603.58,602.69,0.33184555]
[1743359756292,2.955,603.58,602.4,2.5042385]
[1743359756493,2.955,603.58,602.69,0.28851535]
[1743359756894,2.955,603.58,602.4,2.5042385]
[1743359758091,2.955,603.58,602.41,0.28851535]
[1743359758401,2.955,603.58,602.4,2.5042385]
[1743359758696,2.955,603.58,602.38,2.5042385]
[1743359759597,2.955,603.58,602.39,0.28851774]
[1743359759797,2.955,603.58,602.45,2.5042385]
[1743359762094,2.955,603.58,602.6,2.5042385]
[1743359764097,2.955,603.58,602.74,2.5042385]
[1743359765096,2.955,603.58,602.75,2.5042385]
[1743359766502,2.955,603.58,602.53,0.2884998]
[1743359767302,2.955,603.58,602.4,2.5042385]
[1743359767503,2.955,603.58,602.41,2.5042385]
[1743359767902,2.955,603.58,602.41,2.79278016]
[1743359769103,4.456,603.58,602.41,2.79278016]
[1743359770408,4.456,603.58,602.41,2.5042385]
[1743359771610,4.456,603.58,602.41,2.79278614]
[1743359773312,4.456,603.58,602.42,2.5042385]
[1743359775005,4.456,603.58,602.46,2.5042385]
[1743359776211,4.456,603.58,602.43,2.5042385]
[1743359777512,4.456,603.58,602.61,2.5042385]
[1743359781310,4.456,603.58,602.68,2.5042385]
[1743359782916,4.456,603.58,602.71,2.5042385]
[1743359784715,4.456,603.58,602.73,2.5042385]
[1743359785918,4.456,603.58,602.57,2.5042385]
[1743359785919,4.456,603.58,602.83,2.5042385]
[1743359787719,4.456,603.58,602.84,2.5042385]
[1743359789126,4.456,603.58,602.71,2.5042385]
[1743359790119,4.456,603.58,602.53,2.5042385]
[1743359790820,4.456,603.58,602.55,0.33192266]
[1743359798126,4.456,603.58,602.6,2.5042385]
[1743359798329,4.456,603.58,602.62,0.3318841]
[1743359801040,4.456,603.58,602.96,2.5042385]
[1743359804337,4.456,603.58,602.97,2.5042385]
[1743359805740,4.456,603.58,602.88,0.28841731]
[1743359806447,4.456,603.58,602.62,0.3318841]
[1743359806448,4.456,603.58,602.69,2.5042385]
[1743359806646,4.456,603.58,602.7,0.33184005]
[1743359806848,4.456,603.58,602.88,0.28843046]
[1743359807044,4.456,603.58,602.89,0.33173547]
[1743359821557,4.456,603.58,603.05,2.5042385]
[1743359822663,4.456,603.58,603.06,2.5042385]
[1743359825257,4.456,603.58,603.07,2.5042385]
[1743359826455,4.456,603.58,603.0,0.28837071]
[1743359826456,4.456,603.58,603.09,2.5042385]
[1743359827460,4.456,603.58,603.08,2.5042385]
[1743359829160,4.456,603.58,603.03,0.28836951]
[1743359830466,4.456,603.58,603.02,2.5042385]
[1743359830864,4.456,603.58,603.05,2.5042385]
[1743359832164,4.456,603.58,603.08,2.5042385]
[1743359833565,4.456,603.58,602.89,0.33173547]
[1743359834667,4.456,603.58,602.9,0.28845197]
[1743359836066,4.456,603.58,602.9,0.62018194]
[1743359836272,4.456,603.58,602.91,0.33172446]
[1743359851185,4.456,603.58,602.91,2.83596296]
[1743359852784,4.456,603.58,603.22,2.5042385]
[1743359853884,4.456,603.58,603.03,2.5042385]
[1743359855288,4.456,603.58,603.0,2.5042385]
[1743359856593,4.456,603.58,602.98,2.5042385]
[1743359857393,4.456,603.58,602.94,0.28838624]
[1743359857594,4.456,603.58,602.94,0.33170796]
[1743359857792,4.456,603.58,602.94,0.62010495]
[1743359859293,4.456,603.58,603.03,2.5042385]
[1743359860795,4.456,603.58,603.1,2.5042385]
[1743359865298,4.456,603.58,603.01,2.5042385]
[1743359867494,4.456,603.58,603.04,2.5042385]
[1743359868303,4.456,603.58,603.05,2.5042385]
[1743359870299,4.456,603.58,603.04,2.5042385]
[1743359871902,4.456,603.58,603.06,2.5042385]
[1743359875005,4.456,603.58,603.25,2.5042385]
[1743359879103,4.456,603.58,603.03,0.28836951]
[1743359879505,4.456,603.58,603.04,0.33165295]
[1743359882309,4.456,603.58,603.15,2.5042385]
[1743359882703,4.456,603.58,603.16,0.33158697]
[1743359887515,4.456,603.58,603.17,2.5042385]
[1743359887811,4.456,603.58,603.18,0.33157598]
[1743359891015,4.456,603.58,603.2,2.5042385]
[1743359891217,4.456,603.58,603.21,0.33155949]
[1743359909030,4.456,603.58,603.27,2.5042385]
[1743359909235,1.226,603.58,603.27,2.5042385]
[1743359909435,1.50910482,604.59,603.27,2.5042385]
[1743359909631,0.63503515,604.58,603.27,2.5042385]
[1743359909936,0.28829904,604.3,603.27,2.5042385]
[1743359910137,0.28829904,604.3,603.24,2.5042385]
[1743359910337,4.25877533,604.57,603.24,2.5042385]
[1743359910536,5.7886074,604.56,603.24,2.5042385]
[1743359910735,3.05390513,604.55,603.24,2.5042385]
[1743359910936,0.63505372,604.54,603.24,2.5042385]
[1743359911236,0.63505918,604.53,603.24,2.5042385]
[1743359911433,0.63506465,604.52,603.24,2.5042385]
[1743359911636,0.63506465,604.52,603.27,2.5042385]
[1743359911836,0.33084647,604.51,603.27,2.5042385]
[1743359912331,1.29,604.5,603.27,2.5042385]
[1743359912537,0.33085741,604.49,603.27,2.5042385]
[1743359912834,1.442,604.48,603.27,2.5042385]
[1743359913235,0.33086836,604.47,603.27,2.5042385]
[1743359913837,1.83997318,604.47,603.27,2.5042385]
[1743359914031,1.83997318,604.47,603.36,2.5042385]
[1743359914440,4.25518219,604.47,603.36,2.5042385]
[1743359914641,0.93056886,604.46,603.36,2.5042385]
[1743359914842,0.33087931,604.45,603.36,2.5042385]
[1743359915236,2.77094972,604.45,603.36,2.5042385]
[1743359915438,5.18615221,604.45,603.36,2.5042385]
[1743359915638,4.8552729,604.44,603.44,2.5042385]
[1743359915834,4.2555943,604.43,603.44,2.5042385]
[1743359916038,1.84039728,604.42,603.44,2.5042385]
[1743359916233,0.33089573,604.42,603.44,2.5042385]
[1743359916740,4.45946615,604.42,603.44,2.5042385]
[1743359916937,4.85586598,604.41,603.44,2.5042385]
[1743359917137,4.85682432,604.4,603.44,2.5042385]
[1743359917335,4.85682432,604.39,603.25,0.28818921]
[1743359917641,0.93087176,604.38,603.25,0.28818921]
[1743359917941,4.12859123,604.38,603.25,0.28818921]
[1743359918136,1.84090486,604.37,603.25,0.28818921]
[1743359918338,1.26179487,604.37,603.25,0.28818921]
[1743359918539,1.56082068,604.36,603.25,0.28818921]
[1743359918737,0.33093406,604.35,603.25,0.28818921]
[1743359919641,1.2298921,604.34,603.25,0.28818921]
[1743359920540,1.2298921,604.33,603.21,0.33155949]
[1743359921147,1.2298921,604.32,603.21,0.33155949]
[1743359921741,1.79824138,604.31,603.22,0.28825963]
[1743359921946,1.50998175,604.3,603.22,0.28825963]
[1743359922144,1.50998175,604.29,603.22,0.28825963]
[1743359922349,1.50998175,604.28,603.22,0.28825963]
[1743359922549,1.50998175,604.27,603.22,0.28825963]
[1743359922848,1.50998175,604.26,603.22,0.28825963]
[1743359923043,1.50998175,604.25,603.22,0.28825963]
[1743359923348,1.50998175,604.24,603.22,0.28825963]
[1743359923548,1.50998175,604.23,603.21,0.33155949]
[1743359923744,1.50998175,604.22,603.21,0.33155949]
[1743359923941,1.50998175,604.21,603.21,0.33155949]
[1743359924148,1.50998175,604.2,603.21,0.33155949]
[1743359924347,1.50998175,604.19,603.21,0.33155949]
[1743359924647,1.50998175,604.18,603.22,0.28827635]
[1743359925149,1.51184994,604.17,603.22,0.28827635]
[1743359925347,1.51184994,604.18,603.22,0.28827635]
[1743359925543,1.51184994,604.17,603.22,0.28827635]
[1743359925744,1.2298921,604.17,603.22,0.28827635]
[1743359925948,2.74174204,604.17,603.22,0.28827635]
[1743359926148,1.51184994,604.16,603.22,0.28827635]
[1743359926349,2.74174204,604.16,603.22,0.28827635]
[1743359926548,1.2298921,604.16,603.21,0.33155949]
[1743359926946,1.2298921,604.16,603.22,0.28825366]
[1743359927144,2.74174204,604.15,603.22,0.28825366]
[1743359927348,1.51184994,604.14,603.22,0.28825366]
[1743359927951,1.2298921,604.15,603.22,0.28825366]
[1743359928247,1.2298921,604.13,603.22,0.28825366]
[1743359928850,1.2298921,604.12,603.22,0.28825366]
[1743359929354,1.2298921,604.12,603.21,0.33155949]
[1743359929547,1.2298921,604.17,603.21,0.33155949]
[1743359929748,1.51290519,604.16,603.22,0.28825844]
[1743359929949,2.74279729,604.17,603.22,0.28825844]
[1743359930152,1.2298921,604.15,603.22,0.28825844]
[1743359930853,1.51290519,604.14,603.22,0.28825844]
[1743359931053,1.51290519,604.13,603.22,0.28825844]
[1743359931250,1.51290519,604.12,603.22,0.28825844]
[1743359931447,1.51290519,604.11,603.22,0.28825844]
[1743359931650,1.51290519,604.1,603.22,0.28825844]
[1743359931954,2.74279729,604.09,603.22,0.28825844]
[1743359932253,1.51290519,604.08,603.21,0.33155949]
[1743359932452,1.51290519,604.07,603.16,2.5042385]
[1743359932654,1.51290519,604.06,603.16,2.5042385]
[1743359932956,1.51290519,604.05,603.16,2.5042385]
[1743359933154,1.51290519,604.04,603.16,2.5042385]
[1743359933348,1.51290519,604.03,603.16,2.5042385]
[1743359933553,2.44568226,604.05,603.16,2.5042385]
[1743359933753,2.44568226,604.05,603.15,0.28831814]
[1743359933754,1.51822338,604.03,603.15,0.28831814]
[1743359934055,1.51290519,604.02,603.15,0.28831814]
[1743359934354,1.51290519,604.01,603.15,0.28831814]
[1743359934554,1.51290519,604.0,603.15,0.28831814]
[1743359934754,1.51290519,603.99,603.15,0.28831814]
[1743359934949,1.51290519,604.0,603.15,0.28831814]
[1743359935254,1.2298921,604.01,603.15,0.28831814]
[1743359935455,1.2298921,603.98,602.48,2.5042385]
[1743359935657,1.2298921,603.98,602.5,0.3319502]
[1743359936148,1.2298921,603.97,602.5,0.3319502]
[1743359936354,1.2298921,603.97,602.56,2.5042385]
[1743359936550,1.2298921,603.97,602.58,0.33190613]
[1743359936949,1.2298921,603.96,602.58,0.33190613]
[1743359937651,1.2298921,603.98,602.58,0.33190613]
[1743359938350,4.86136015,604.12,602.66,2.5042385]
[1743359938655,1.26279454,604.11,602.68,0.33185106]
[1743359938856,5.12285164,604.11,602.68,0.33185106]
[1743359939055,4.85963058,604.1,602.68,0.33185106]
[1743359939254,0.93146441,604.09,602.68,0.33185106]
[1743359939655,4.12918388,604.09,602.68,0.33185106]
[1743359939856,4.21655121,604.08,602.78,2.5042385]
[1743359940052,4.21655121,604.08,602.79,0.3317905]
[1743359940252,1.79921818,604.08,602.79,0.3317905]
[1743359940853,0.33108745,604.07,602.79,0.3317905]
[1743359941456,1.26228619,604.07,602.79,0.3317905]
[1743359941652,0.33108745,604.07,602.79,0.3317905]
[1743359941853,3.52880692,604.07,602.79,0.3317905]
[1743359942052,1.79876784,604.06,602.79,0.3317905]
[1743359942649,0.28837668,604.06,602.79,0.3317905]
[1743359944554,0.33108745,604.07,602.79,0.3317905]
[1743359944958,0.28838982,604.05,602.79,0.3317905]
[1743359947061,1.363,604.04,602.79,0.3317905]
[1743359948761,0.28840536,604.03,602.79,0.3317905]
[1743359950360,1.363,604.04,602.79,0.3317905]
[1743359951662,0.28838265,604.03,602.79,0.3317905]
[1743359953461,1.363,604.04,602.79,0.3317905]
[1743359953861,0.28837429,604.02,602.79,0.3317905]
[1743359956460,1.363,604.04,602.79,0.3317905]
[1743359957567,1.363,604.04,602.83,2.5042385]
[1743359957765,0.28837907,604.03,602.84,0.33176298]
[1743359959567,1.363,604.04,602.84,0.33176298]
[1743359959762,1.363,604.04,602.85,2.5042385]
[1743359960063,1.363,604.04,602.86,0.33175198]
[1743359960768,0.28838265,604.03,602.86,0.33175198]
[1743359961562,1.695,604.02,602.86,0.33175198]
[1743359962763,2.62504312,604.02,602.86,0.33175198]
[1743359963263,0.33112034,604.01,602.86,0.33175198]
[1743359963876,1.26116346,604.01,602.86,0.33175198]
[1743359964770,2.8198921,604.0,602.86,0.33175198]
[1743359964975,0.33113131,603.99,602.86,0.33175198]
[1743359965175,5.18250652,603.99,602.86,0.33175198]
[1743359965373,0.93004312,603.98,602.86,0.33175198]
[1743359965572,0.33114227,603.97,602.86,0.33175198]
[1743359965775,1.26118539,603.97,602.86,0.33175198]
[1743359966071,2.76897175,603.97,602.86,0.33175198]
[1743359966376,3.52771471,603.97,602.86,0.33175198]
[1743359966577,1.50778636,603.96,602.86,0.33175198]
[1743359966776,0.33115324,603.95,602.86,0.33175198]
[1743359969774,0.28845795,603.94,602.86,0.33175198]
[1743359969974,0.3311642,603.93,602.86,0.33175198]
[1743359972884,0.28845556,603.92,602.86,0.33175198]
[1743359974483,0.3311642,603.93,602.86,0.33175198]
[1743359975079,2.76853229,603.93,602.86,0.33175198]
[1743359975284,1.2298921,603.92,602.86,0.33175198]
[1743359975486,6.07962144,603.92,602.86,0.33175198]
[1743359975687,4.84972934,603.91,602.86,0.33175198]
[1743359975886,4.84972934,603.9,602.86,0.33175198]
[1743359976189,3.92014761,603.9,602.86,0.33175198]
[1743359976387,1.50778636,603.9,602.86,0.33175198]
[1743359976686,3.19657244,603.89,602.86,0.33175198]
[1743359976887,7.11672005,603.89,602.86,0.33175198]
[1743359977083,1.50778636,603.88,602.86,0.33175198]
[1743359977287,1.2298921,603.89,602.86,0.33175198]
[1743359977482,2.15987173,603.89,602.86,0.33175198]
[1743359977989,4.12655207,603.89,602.86,0.33175198]
[1743359978185,3.92177636,603.88,602.86,0.33175198]
[1743359978586,1.50837552,603.87,602.86,0.33175198]
[1743359978785,0.28844958,603.87,602.86,0.33175198]
[1743359979990,1.2298921,603.86,602.86,0.33175198]
[1743359981290,2.73826762,603.86,602.86,0.33175198]
[1743359981489,1.2298921,603.85,602.86,0.33175198]
[1743359981687,2.73826762,603.85,602.86,0.33175198]
[1743359981890,1.51835483,603.85,602.86,0.33175198]
[1743359982096,3.02673035,603.85,602.86,0.33175198]
[1743359982489,1.51835483,603.85,602.86,0.33175198]
[1743359982887,1.2298921,603.84,602.86,0.33175198]
[1743359983491,0.33121356,603.84,602.86,0.33175198]
[1743359983892,0.28845676,603.83,602.86,0.33175198]
[1743359984193,1.51834886,603.83,602.86,0.33175198]
[1743359984596,1.2298921,603.82,602.86,0.33175198]
[1743359985494,1.2298921,603.81,602.86,0.33175198]
[1743359986190,1.2298921,603.8,602.86,0.33175198]
[1743359986795,1.2298921,603.79,602.86,0.33175198]
[1743359987897,1.2298921,603.78,602.86,0.33175198]
[1743359988591,1.2298921,603.77,602.86,0.33175198]
[1743359989496,1.2298921,603.8,602.86,0.33175198]
[1743359989696,2.73826762,603.8,602.86,0.33175198]
[1743359989896,1.2298921,603.8,602.86,0.33175198]
[1743359990091,1.2298921,603.79,602.86,0.33175198]
[1743359990596,2.73826762,603.83,602.86,0.33175198]
[1743359990797,0.28848306,603.8,602.86,0.33175198]
[1743359992597,1.2298921,603.82,602.86,0.33175198]
[1743359992898,1.2298921,603.83,602.86,0.33175198]
[1743359993294,2.74170646,603.83,602.86,0.33175198]
[1743359993494,1.2298921,603.83,602.86,0.33175198]
[1743359993695,1.2298921,603.82,602.86,0.33175198]
[1743359993899,1.51835603,603.82,602.86,0.33175198]
[1743359994393,3.03017039,603.82,602.86,0.33175198]
[1743359995599,1.2298921,603.81,602.86,0.33175198]
[1743359996799,1.80027112,603.8,602.86,0.33175198]
[1743359996999,1.51181436,603.79,602.86,0.33175198]
[1743359997196,1.51181436,603.78,602.86,0.33175198]
[1743359997398,1.51181436,603.79,602.86,0.33175198]
[1743359997598,1.51834886,603.8,602.86,0.33175198]
[1743359997794,1.2298921,603.8,602.86,0.33175198]
[1743359998300,1.2298921,603.78,602.86,0.33175198]
[1743359998701,1.236,603.77,602.86,0.33175198]
[1743360010002,1.433,603.76,602.86,0.33175198]
[1743360014904,1.518,603.75,602.86,0.33175198]
[1743360018011,1.61,603.74,602.86,0.33175198]
[1743360035526,1.478,603.73,602.86,0.33175198]
[1743360047133,1.435,603.72,602.86,0.33175198]
[1743360065358,1.435,603.72,602.89,2.5042385]
[1743360065659,1.435,603.72,602.9,0.33172997]
[1743360070065,1.478,603.73,602.9,0.33172997]
[1743360073762,1.536,603.72,602.9,0.33172997]
[1743360074368,1.37,603.71,602.9,0.33172997]
[1743360093084,1.315,603.7,602.9,0.33172997]
[1743360096186,2.709,603.7,602.9,0.33172997]
[1743360098780,2.709,603.7,603.04,2.5042385]
[1743360100287,2.709,603.7,603.05,2.5042385]
[1743360103582,2.709,603.7,603.06,2.5042385]
[1743360105292,2.709,603.7,603.09,2.5042385]
[1743360106698,2.709,603.7,603.11,2.5042385]
[1743360108395,2.709,603.7,603.08,2.5042385]
[1743360109898,2.709,603.7,602.9,0.33172997]
[1743360109899,2.709,603.7,603.03,2.5042385]
[1743360111499,2.709,603.7,603.04,2.5042385]
[1743360112802,2.709,603.7,602.95,2.5042385]
[1743360113902,2.709,603.7,602.96,0.2884209]
[1743360115497,2.709,603.7,602.95,2.5042385]
[1743360116797,2.709,603.7,602.96,0.2884209]
[1743360118499,2.709,603.7,602.9,0.33172997]
[1743360119797,2.709,603.7,602.91,0.28842329]
[1743360120405,2.709,603.7,602.96,2.5042385]
[1743360125610,2.709,603.7,602.94,0.28841014]
[1743360127510,2.709,603.7,602.9,2.83596847]
[1743360127907,2.709,603.7,602.94,0.28842926]
[1743360130511,2.709,603.7,602.9,0.33172997]
[1743360131013,2.709,603.7,602.91,0.28844122]
[1743360133610,2.709,603.7,602.9,0.33172997]
[1743360134813,2.709,603.7,602.91,0.28846752]
[1743360139521,2.709,603.7,602.9,0.33172997]
[1743360140021,4.067,603.7,602.9,0.33172997]
[1743360140821,4.067,603.7,602.91,0.288446]
[1743360142526,4.067,603.7,602.9,0.33172997]
[1743360143820,4.067,603.7,602.93,2.5042385]
[1743360144728,4.067,603.7,602.94,2.5042385]
[1743360146331,4.067,603.7,602.95,2.5042385]
[1743360148630,4.067,603.7,602.93,0.28843763]
[1743360148833,4.067,603.7,602.92,2.5042385]
[1743360150126,4.067,603.7,602.93,0.28844839]
[1743360151635,4.067,603.7,602.9,0.33172997]
[1743360155735,1.23390479,603.69,602.9,0.33172997]
[1743360156337,1.23390479,603.68,602.9,0.33172997]
[1743360157436,1.23390479,603.67,602.9,0.33172997]
[1743360158135,1.23390479,603.66,602.9,0.33172997]
[1743360159129,1.23390479,603.69,602.9,0.33172997]
[1743360159333,3.66490479,603.69,602.9,0.33172997]
[1743360159738,1.23390479,603.68,602.9,0.33172997]
[1743360160437,1.23390479,603.67,602.9,0.33172997]
[1743360161034,1.23390479,603.68,602.9,0.33172997]
[1743360161738,1.23390479,603.67,602.9,0.33172997]
[1743360162741,1.23390479,603.68,602.9,0.33172997]
[1743360163541,1.23390479,603.67,602.9,0.33172997]
[1743360164338,1.23390479,603.68,602.9,0.33172997]
[1743360166342,1.23390479,603.67,602.9,0.33172997]
[1743360167036,3.66490479,603.69,602.9,0.33172997]
[1743360168742,1.23390479,603.68,602.9,0.33172997]
[1743360169042,3.66490479,603.69,602.9,0.33172997]
[1743360170944,2.431,603.69,602.9,0.33172997]
[1743360180148,1.2331044,603.68,602.9,0.33172997]
[1743360181148,1.275,603.69,602.9,0.33172997]
[1743360183949,2.612,603.69,602.9,0.33172997]
[1743360185850,1.23383931,603.68,602.9,0.33172997]
[1743360186547,1.23383931,603.67,602.9,0.33172997]
[1743360187252,1.337,603.69,602.9,0.33172997]
[1743360188654,1.23403886,603.68,602.9,0.33172997]
[1743360189056,1.23403886,603.67,602.9,0.33172997]
[1743360189755,1.545,603.66,602.9,0.33172997]
[1743360191258,1.23441224,603.65,602.9,0.33172997]
[1743360191660,1.23441224,603.64,602.9,0.33172997]
[1743360192352,1.545,603.66,602.9,0.33172997]
[1743360192353,1.23441224,603.63,602.9,0.33172997]
[1743360192959,1.545,603.66,602.9,0.33172997]
[1743360198961,1.23485989,603.65,602.9,0.33172997]
[1743360199364,1.23485989,603.64,602.9,0.33172997]
[1743360199566,1.5149484,603.63,602.9,0.33172997]
[1743360199869,1.5149484,603.62,602.81,2.5042385]
[1743360200070,1.5149484,603.61,602.81,2.5042385]
[1743360200265,1.5149484,603.6,602.81,2.5042385]
[1743360200471,1.5149484,603.59,602.81,2.5042385]
[1743360200669,1.5149484,603.58,602.78,2.5042385]
[1743360200869,1.5149484,603.57,602.78,2.5042385]
[1743360201068,1.5149484,603.56,602.78,2.5042385]
[1743360201268,1.5149484,603.55,602.78,2.5042385]
[1743360201768,1.23485989,603.54,602.78,2.5042385]
[1743360202670,2.75030953,603.54,602.75,0.28851774]
[1743360202870,1.23485989,603.53,602.75,0.28851774]
[1743360203266,1.23485989,603.52,602.75,0.28851774]
[1743360203872,1.23485989,603.51,602.75,0.28851774]
[1743360204770,1.23485989,603.5,602.75,0.28851774]
[1743360205566,1.23485989,603.49,602.35,2.5042385]
[1743360205767,1.23485989,603.49,602.36,0.33202735]
[1743360206168,1.5154177,603.54,602.36,0.33202735]
[1743360206366,1.5154177,603.53,602.36,0.33202735]
[1743360206673,1.5154177,603.57,602.36,0.33202735]
[1743360206973,1.23525508,603.52,602.37,0.28860508]
[1743360207167,1.23525508,603.52,602.38,0.33201633]
[1743360207573,1.23525508,603.57,602.38,0.33201633]
[1743360208372,1.23525508,603.56,602.38,0.33201633]
[1743360208773,1.23525508,603.57,602.38,0.33201633]
[1743360211573,2.729,603.58,602.38,0.33201633]
[1743360212574,3.96425508,603.58,602.38,0.33201633]
[1743360213675,2.729,603.58,602.38,0.33201633]
[1743360218076,2.729,603.58,602.45,2.5042385]
[1743360218276,2.729,603.58,602.46,0.33197224]
[1743360227874,0.28861465,603.57,602.46,0.33197224]
[1743360229582,1.608,603.58,602.46,0.33197224]
[1743360230677,2.869,603.58,602.46,0.33197224]
[1743360230874,0.28859191,603.57,602.46,0.33197224]
[1743360231275,1.52384699,603.57,602.46,0.33197224]
[1743360232080,3.03727376,603.57,602.46,0.33197224]
[1743360232577,1.23525508,603.56,602.46,0.33197224]
[1743360232783,1.52383263,603.56,602.46,0.33197224]
[1743360232985,3.0372594,603.56,602.46,0.33197224]
[1743360233284,1.23525508,603.55,602.46,0.33197224]
[1743360234885,3.0372594,603.56,602.46,0.33197224]
[1743360235690,1.23525508,603.56,602.46,0.33197224]
[1743360236886,0.28858473,603.55,602.46,0.33197224]
[1743360238591,2.7481843,603.56,602.46,0.33197224]
[1743360238792,1.23525508,603.56,602.46,2.83621074]
[1743360238988,0.28858473,603.55,602.46,2.83621074]
[1743360239792,0.28858473,603.55,602.46,0.33197224]
[1743360241689,2.7481843,603.56,602.46,0.33197224]
[1743360241893,1.23525508,603.56,602.46,0.33197224]
[1743360242896,0.2885979,603.55,602.46,0.33197224]
[1743360244696,2.7481843,603.56,602.46,0.33197224]
[1743360244915,1.23525508,603.56,602.46,0.33197224]
[1743360245493,3.08825508,603.57,602.46,0.33197224]
[1743360245893,0.28859311,603.56,602.46,0.33197224]
[1743360247697,1.853,603.57,602.46,0.33197224]
[1743360248999,0.28857755,603.56,602.46,0.33197224]
[1743360249699,1.858,603.55,602.46,0.33197224]
[1743360251708,1.858,603.55,602.47,2.5042385]
[1743360252409,3.16833924,603.54,602.47,2.5042385]
[1743360252602,4.68268102,603.54,602.47,2.5042385]
[1743360252805,3.16833924,603.54,602.47,2.5042385]
[1743360253007,3.16833924,603.54,602.49,2.5042385]
[1743360253209,1.23433924,603.53,602.49,2.5042385]
[1743360253604,1.23433924,603.52,602.49,2.5042385]
[1743360254206,1.23433924,603.52,602.46,0.33197224]
[1743360254207,1.23433924,603.52,602.51,2.5042385]
[1743360254408,1.23433924,603.51,602.51,2.5042385]
[1743360255116,1.23433924,603.53,602.51,2.5042385]
[1743360255610,1.23433924,603.53,602.47,0.28856798]
[1743360256107,1.23433924,603.52,602.47,0.28856798]
[1743360256304,1.23433924,603.52,602.48,0.33196122]
[1743360256913,1.934,603.54,602.48,0.33196122]
[1743360267618,1.858,603.55,602.48,0.33196122]
[1743360269623,1.853,603.57,602.48,0.33196122]
[1743360271821,3.698,603.57,602.48,0.33196122]
[1743360274620,3.698,603.57,602.49,2.5042385]
[1743360274823,3.698,603.57,602.51,0.33194469]
[1743360278021,3.698,603.57,602.51,2.83618319]
[1743360278917,3.698,603.57,602.56,2.5042385]
[1743360279121,5.476,603.57,602.58,0.33190613]
[1743360284222,5.476,603.57,602.73,2.5042385]
[1743360284428,5.476,603.57,602.74,0.33181803]
[1743360285629,5.476,603.57,602.8,2.5042385]
[1743360287229,5.476,603.57,602.84,2.5042385]
[1743360288424,5.476,603.57,602.83,2.5042385]
[1743360289728,5.476,603.57,602.87,2.5042385]
[1743360292830,5.476,603.57,602.81,2.5042385]
[1743360294031,5.476,603.57,602.87,2.5042385]
[1743360295331,5.476,603.57,602.89,2.5042385]
[1743360296427,5.476,603.57,602.9,2.5042385]
[1743360297932,5.476,603.57,602.88,2.5042385]
[1743360299135,5.476,603.57,602.91,2.5042385]
[1743360300432,5.476,603.57,602.81,0.28843763]
[1743360300433,5.476,603.57,602.95,2.5042385]
[1743360303739,5.476,603.57,602.87,0.28842926]
[1743360303740,5.476,603.57,602.96,2.5042385]
[1743360305134,5.476,603.57,602.91,0.28841611]
[1743360309047,5.476,603.57,602.92,0.33171896]
[1743360333770,5.476,603.57,602.93,2.5042385]
[1743360334372,5.476,603.57,602.94,0.33170796]
[1743360335070,5.476,603.57,603.04,2.5042385]
[1743360337577,5.476,603.57,603.07,2.5042385]
[1743360338573,5.476,603.57,603.15,2.5042385]